bitfinex-derivatives/quotes_ETHF0:USTF0_20250410
["timestamp","ask_amount","ask_price","bid_price","bid_amount"]
[1744293975282,6.6964,1569.9,1569.8,1.27478]
[1744293976083,7.9711,1569.9,1569.8,1.27478]
[1744293976278,6.6964,1569.9,1569.7,1.2748]
[1744293976483,1.27486,1569.7,1569.6,1.2749]
[1744293976681,1.27486,1569.7,1569.6,1.28446999]
[1744293976882,4.48266,1569.7,1569.6,0.00956999]
[1744293977084,1.27486,1569.7,1569.6,0.00956999]
[1744293977282,3.18737,1569.6,1569.1,1.2753]
[1744293977578,12.08,1569.6,1569.4,1.27505]
[1744293977783,12.08,1569.6,1569.2,13.51388]
[1744293977989,1.27504,1569.5,1569.4,1.27504]
[1744293978189,6.9406,1569.5,1569.4,1.27511]
[1744293979088,6.09565,1569.9,1569.5,3.18745]
[1744293979284,8.21546,1569.8,1569.7,1.27486]
[1744293979490,8.21546,1569.8,1569.4,11.60081]
[1744293979491,6.9406,1569.8,1569.4,11.60081]
[1744293979693,8.21543,1569.8,1569.7,1.27486]
[1744293979987,0.00956999,1570.0,1569.7,4.48266]
[1744293980190,0.00956999,1570.0,1569.9,4.4825]
[1744293980392,3.21736999,1570.0,1569.8,7.97992]
[1744293980692,1.27478,1569.8,1569.7,1.27485]
[1744293980892,1.27494,1569.6,1569.5,1.27497]
[1744293981083,7.3135,1569.7,1569.6,1.27494]
[1744293981489,7.3135,1569.7,1569.4,1.27506]
[1744293981687,0.3223325,1569.6,1569.5,1.27503]
[1744293981894,1.5972725,1569.6,1569.4,4.4603]
[1744293982093,7.3135,1569.5,1569.4,5.73534]
[1744293982394,7.3135,1569.5,1569.4,4.4603]
[1744293982698,1.2754,1569.1,1568.8,3.2078]
[1744293982887,1.27546,1569.0,1568.8,3.2078]
[1744293983197,6.39608,1569.2,1568.7,6.8474]
[1744293983390,1.27551,1568.9,1568.6,10.0552]
[1744293983695,3.2078,1568.7,1567.9,6.39843]
[1744293983891,4.484,1568.1,1567.9,1.27629]
[1744293984094,4.484,1568.1,1567.7,4.9126]
[1744293984095,3.5301325,1568.3,1568.1,1.27616]
[1744293984295,0.3223325,1568.3,1568.2,1.27608]
[1744293984687,0.3223325,1568.3,1567.9,13.24602]
[1744293984892,0.33270133,1568.1,1568.0,1.27625]
[1744293985094,0.00956999,1568.4,1568.3,1.276]
[1744293985398,0.01994023,1568.4,1568.3,1.276]
[1744293986391,1.27603,1568.3,1568.1,1.27612]
[1744293986588,1.276,1568.3,1568.1,1.27612]
[1744293986788,1.29590023,1568.4,1568.2,1.27608]
[1744293986990,23.6,1568.3,1568.2,1.27608]
[1744293987190,23.62073915,1568.3,1568.1,1.27612]
[1744293987399,23.62073915,1568.3,1567.9,1.27627]
[1744293987400,26.82853915,1568.3,1567.9,1.27627]
[1744293987601,26.82853915,1568.3,1567.6,8.34326]
[1744293987602,6.39824,1568.1,1567.5,0.11098231]
[1744293987898,1.27641,1567.8,1567.3,6.39981]
[1744293988098,3.2078,1568.0,1567.4,7.1441]
[1744293988293,0.01036891,1567.7,1567.5,1.27658]
[1744293988499,3.2078,1567.6,1567.5,1.27665]
[1744293988801,4.48437,1567.6,1567.1,7.1441]
[1744293988995,0.02073782,1567.4,1566.8,6.40068]
[1744293989195,3.22853782,1567.4,1566.8,6.40068]
[1744293989397,3.22853782,1567.4,1567.2,1.27685]
[1744293989398,0.00956999,1567.3,1567.2,1.27685]
[1744293989791,0.00956999,1567.3,1567.2,4.48465]
[1744293990098,0.03030781,1567.3,1567.2,4.48465]
[1744293990291,0.03030781,1567.3,1567.2,1.27685]
[1744293990693,0.11104038,1568.8,1567.2,8.2078]
[1744293990891,3.2078,1568.2,1567.7,3.2078]
[1744293991093,1.27621,1568.1,1567.9,1.27631]
[1744293991287,1.27625,1568.0,1567.8,1.27636]
[1744293991492,1.27622,1568.1,1567.8,1.27636]
[1744293991694,3.2078,1568.2,1567.6,7.3486]
[1744293992001,0.00956999,1568.1,1568.0,1.27625]
[1744293992392,0.00956999,1568.1,1568.0,8.79185]
[1744293992699,0.01991822,1568.1,1568.0,8.79185]
[1744293992998,1.27633,1567.9,1567.8,0.00956999]
[1744293993203,0.02069646,1567.9,1567.8,0.00956999]
[1744293993402,1.29702646,1567.9,1567.8,0.00956999]
[1744293993595,0.02069646,1567.9,1567.8,0.00956999]
[1744293993794,0.03104469,1567.9,1567.8,1.28597999]
[1744293993993,0.03104469,1567.9,1567.8,0.00956999]
[1744293994190,0.03104469,1567.9,1567.8,1.28597999]
[1744293994396,0.04139292,1567.9,1567.8,1.28597999]
[1744293994694,0.04139292,1567.9,1567.8,0.00956999]
[1744293994996,0.05174115,1567.9,1567.8,0.00956999]
[1744293995193,0.33894554,1567.9,1567.8,0.00956999]
[1744293995398,1.61527554,1567.9,1567.8,0.00956999]
[1744293995598,0.34929377,1567.9,1567.8,1.28597999]
[1744293996104,0.359642,1567.9,1567.8,1.28597999]
[1744293996898,0.36999023,1567.9,1567.8,1.28593999]
[1744293997299,8.58813846,1567.9,1567.1,0.6384]
[1744293997504,3.2078,1567.3,1566.6,0.11101984]
[1744293997697,10.0742,1567.2,1566.6,3.19344]
[1744293997895,0.39068669,1566.9,1566.7,7.3582]
[1744293998095,7.4781,1566.8,1566.7,8.6355]
[1744293998500,7.87913492,1566.8,1566.7,8.6355]
[1744293998701,7.87913492,1566.8,1566.7,1.2773]
[1744293999000,10.6859,1566.8,1566.5,8.36634]
[1744293999199,3.2078,1566.6,1566.2,3.2078]
[1744293999404,1.27755,1566.4,1566.3,1.27757]
[1744293999702,3.62953138,1566.4,1565.7,3.2078]
[1744293999900,3.2078,1566.1,1565.7,1.27808]
[1744294000105,4.48579,1565.9,1565.7,1.27808]
[1744294000300,4.48579,1565.9,1565.4,7.0889]
[1744294000301,7.4781,1565.8,1565.4,7.0889]
[1744294000504,9.18823961,1565.8,1565.6,1.27816]
[1744294000699,7.91017961,1565.8,1565.7,1.27812]
[1744294002704,1.27812,1565.7,1565.2,11.30219]
[1744294002904,6.9688,1565.6,1565.5,1.27824]
[1744294003407,7.40087961,1565.6,1565.5,1.27824]
[1744294003811,0.43207961,1565.6,1565.5,1.27824]
[1744294004304,0.43207961,1565.6,1565.2,8.11]
[1744294004504,0.43207961,1565.4,1565.3,1.27845]
[1744294004713,0.43207961,1565.4,1565.3,11.93995]
[1744294005005,6.9391,1565.7,1565.6,1.2782]
[1744294005210,0.00956999,1566.0,1565.9,1.27796]
[1744294005510,6.94866999,1566.0,1565.9,1.27796]
[1744294005707,0.00956999,1566.0,1565.9,1.27796]
[1744294005910,0.00956999,1566.0,1565.9,6.27796]
[1744294006108,0.00956999,1566.0,1565.9,1.27796]
[1744294006812,0.00956999,1566.0,1565.9,4.48576]
[1744294007702,0.00956999,1566.0,1565.9,1.27796]
[1744294008104,0.00956999,1566.0,1565.9,4.48576]
[1744294008410,0.00956999,1566.0,1565.9,9.48576]
[1744294008707,0.00956999,1566.0,1565.9,4.48576]
[1744294009414,0.02000439,1566.0,1565.9,1.27796]
[1744294010012,0.03042918,1566.0,1565.9,1.27796]
[1744294010315,12.04212918,1566.0,1565.7,3.2078]
[1744294010614,1.27804,1565.8,1565.7,4.48586]
[1744294010810,6.43437398,1565.8,1565.1,3.1965]
[1744294011015,4.48612,1565.5,1565.4,1.27836]
[1744294011202,3.2078,1565.5,1565.4,1.27836]
[1744294011507,4.48608,1565.5,1565.4,1.27829]
[1744294011715,1.2784,1565.4,1565.3,1.27842]
[1744294011905,8.64852479,1565.4,1565.3,1.27845]
[1744294012216,1.27869,1565.1,1564.9,3.2078]
[1744294012413,4.48653,1565.0,1564.8,1.27881]
[1744294012615,11.84623,1565.0,1564.8,1.27881]
[1744294012915,0.01042479,1564.9,1564.8,1.27885]
[1744294015409,0.01042479,1564.9,1564.8,9.48665]
[1744294015614,0.00956999,1565.1,1565.0,1.27869]
[1744294016216,0.00956999,1565.1,1565.0,9.48649]
[1744294016813,0.02000481,1565.1,1565.0,1.27869]
[1744294017317,0.03043484,1565.1,1565.0,1.27869]
[1744294018004,0.04086487,1565.1,1565.0,8.23639]
[1744294018518,6.98838106,1565.1,1565.0,8.23639]
[1744294019013,6.98838106,1565.1,1565.0,1.27869]
[1744294019214,0.06170417,1565.1,1565.0,1.27869]
[1744294019612,0.06170417,1565.1,1565.0,8.54159]
[1744294020603,0.16104308,1565.1,1565.0,8.54159]
[1744294021816,6.9683,1565.3,1565.2,1.27853]
[1744294022317,15.16443,1565.3,1564.9,1.27871]
[1744294022513,3.2078,1565.2,1564.6,3.19754]
[1744294022712,3.2078,1564.8,1564.2,0.6392]
[1744294022917,0.00345018,1564.2,1564.1,1.27943]
[1744294023207,0.00345018,1564.2,1564.1,8.74323]
[1744294023413,3.2078,1564.5,1564.0,6.40656]
[1744294023613,1.27927,1564.3,1564.2,1.27927]
[1744294024012,1.28880999,1564.4,1564.3,1.27925]
[1744294024212,0.00956999,1564.4,1563.8,6.40692]
[1744294024511,0.00956999,1564.4,1564.0,6.40658]
[1744294024717,0.00956999,1564.4,1564.3,1.27926]
[1744294025113,0.00956999,1564.4,1564.3,13.74306]
[1744294025317,9.99e-06,1564.4,1564.3,13.74306]
[1744294026112,9.99e-06,1564.4,1564.3,32.7089401]
[1744294026420,3.2078,1565.3,1564.7,3.19717]
[1744294026609,4.47328983,1565.3,1565.2,1.27853]
[1744294026916,4.47328983,1565.3,1564.9,3.19693]
[1744294026917,7.98445,1565.4,1564.8,10.40792]
[1744294027124,1.27859,1565.2,1565.1,1.2786]
[1744294027417,1.27871,1565.0,1564.9,1.27872]
[1744294027610,6.41354999,1565.3,1564.7,3.19735]
[1744294027611,3.2078,1565.1,1564.7,3.19735]
[1744294027818,1.27861,1565.1,1565.0,0.00956999]
[1744294028017,3.21736999,1565.3,1565.0,0.00956999]
[1744294028213,1.28809999,1565.3,1565.0,0.00956999]
[1744294028414,1.27854,1565.2,1565.1,1.27855]
[1744294028619,0.00956999,1565.3,1565.1,1.27855]
[1744294028819,1.27861,1565.1,1565.0,1.28823999]
[1744294029021,4.48641,1565.1,1565.0,1.28823999]
[1744294029317,8.2078,1565.1,1564.4,7.1285]
[1744294029508,3.2078,1565.1,1564.9,1.27877]
[1744294029714,1.27882,1564.9,1564.5,9.60332]
[1744294029914,3.19674,1565.0,1564.4,7.11547983]
[1744294030119,3.2078,1564.5,1564.1,0.64]
[1744294030417,3.19878,1564.0,1563.5,3.7078]
[1744294030620,1.27984,1563.6,1563.5,0.5]
[1744294030815,24.87984,1563.6,1563.5,0.5]
[1744294031007,23.6,1563.6,1563.5,0.5]
[1744294031217,24.87984,1563.6,1563.5,0.5]
[1744294031420,3.21736999,1563.7,1563.5,0.5]
[1744294031619,0.02634032,1563.6,1563.5,1.77992]
[1744294032117,3.21736999,1563.7,1563.5,0.5]
[1744294032418,1.27984,1563.6,1563.5,0.5]
[1744294032615,1.28,1563.4,1563.3,0.6515]
[1744294032816,4.48778,1563.5,1563.3,1.93158]
[1744294033018,1.28,1563.4,1563.3,0.6515]
[1744294033315,1.28,1563.5,1563.3,1.93154]
[1744294033514,0.00956999,1563.7,1563.4,1.27996]
[1744294033715,7.0556,1563.4,1563.3,1.93158]
[1744294033910,8.3356,1563.4,1563.3,0.6515]
[1744294034220,12.0556,1563.4,1562.8,3.2078]
[1744294034513,1.28041,1562.9,1562.7,1.28052]
[1744294034719,0.01023473,1562.8,1562.7,1.28057]
[1744294034908,3.21803473,1562.8,1562.3,3.2078]
[1744294035110,0.01023473,1562.8,1562.3,6.41006]
[1744294035307,0.02046946,1562.6,1562.5,1.28074]
[1744294035913,1.30113946,1562.6,1562.4,1.28075]
[1744294036109,0.02046946,1562.6,1562.5,1.28074]
[1744294036309,3.22826946,1562.6,1562.2,1.28095]
[1744294036520,3.2078,1562.5,1562.0,3.20288]
[1744294036814,4.48859,1562.5,1562.3,1.28088]
[1744294037020,3.2078,1562.5,1562.4,1.24995651]
[1744294037217,7.432,1562.6,1562.5,1.28074]
[1744294037719,0.00956999,1562.7,1562.6,1.27026597]
[1744294038117,9.99e-06,1562.7,1562.6,9.47806597]
[1744294038312,9.99e-06,1562.7,1562.6,18.35516581]
[1744294038715,9.99e-06,1562.7,1562.6,10.11806597]
[1744294038922,9.99e-06,1562.7,1562.6,29.10648414]
[1744294040027,1.2798,1563.7,1563.2,3.20023]
[1744294040214,6.40658,1564.0,1563.2,3.20023]
[1744294040215,7.422,1563.5,1563.4,1.28]
[1744294040611,4.8275,1564.0,1563.5,3.19979]
[1744294040815,4.8275,1564.0,1563.6,3.2078]
[1744294041016,3.2078,1563.8,1563.4,3.2078]
[1744294041323,1.27975,1563.7,1563.6,0.00960092]
[1744294041626,8.03594092,1564.0,1563.6,0.00960092]
[1744294041825,4.48755,1563.7,1563.6,0.00960092]
[1744294042119,3.19961,1563.6,1563.2,4.48794]
[1744294042325,1.28008,1563.3,1563.2,3.2078]
[1744294042626,1.28005,1563.4,1563.2,4.48796]
[1744294042827,6.9208,1563.3,1563.2,4.48796]
[1744294043523,6.93123575,1563.3,1563.2,4.48796]
[1744294043829,6.93123575,1563.3,1563.2,1.28016]
[1744294044424,6.9416715,1563.3,1563.1,1.28018]
[1744294044625,1.28019,1563.2,1563.0,1.28027]
[1744294044820,7.2543,1563.1,1563.0,1.28027]
[1744294045023,7.2543,1563.1,1563.0,4.48807]
[1744294045024,7.25e-06,1563.1,1563.0,4.48807]
[1744294045327,0.00960092,1563.2,1563.1,1.28025]
[1744294045622,0.02004392,1563.2,1563.1,1.28025]
[1744294045828,0.02004392,1563.2,1563.1,6.28025]
[1744294046221,0.03047975,1563.2,1563.1,6.28025]
[1744294046420,0.03047975,1563.2,1563.1,13.47505]
[1744294046825,7.2543,1563.6,1563.5,1.27992]
[1744294047527,4.8275,1564.0,1563.6,3.19955]
[1744294047827,7.5996,1563.9,1563.8,1.27967]
[1744294048225,8.87919,1563.9,1563.8,1.27967]
[1744294048440,15.8074,1563.9,1563.6,0.00960092]
[1744294048629,10.8074,1563.9,1563.6,0.00960092]
[1744294049023,3.2078,1563.8,1563.6,0.00960092]
[1744294049229,4.49697092,1564.0,1563.8,1.27965]
[1744294049431,7.5996,1563.8,1563.7,1.27968]
[1744294049728,0.00960092,1564.0,1563.9,1.27959]
[1744294050433,0.01982269,1564.0,1563.9,8.32839]
[1744294051030,1.29933269,1564.0,1563.8,1.27965]
[1744294051230,0.01982269,1564.0,1563.7,7.0488]
[1744294051533,10.53812177,1563.9,1563.6,0.00960092]
[1744294051732,3.19961,1563.6,1562.8,0.64]
[1744294052033,1.28046,1562.9,1562.7,1.28056]
[1744294052234,7.3201,1562.8,1562.4,7.0488]
[1744294052434,0.01022177,1562.6,1562.5,1.28074]
[1744294052632,6.97412177,1562.6,1562.5,1.28074]
[1744294052838,8.25483177,1562.6,1562.2,8.094]
[1744294053042,1.28074,1562.5,1562.4,1.2601686]
[1744294053338,1.28074,1562.5,1562.3,1.28087]
[1744294053339,1.28079,1562.5,1562.3,1.28087]
[1744294053527,6.9639,1562.4,1562.3,1.28087]
[1744294054233,0.00960092,1562.7,1562.1,3.2078]
[1744294054437,6.9639,1562.5,1562.4,1.28082]
[1744294055038,0.00960092,1562.7,1562.6,1.28066]
[1744294056638,9.2e-07,1562.7,1562.6,1.28066]
[1744294057032,9.2e-07,1562.7,1562.6,6.28066]
[1744294057232,9.2e-07,1562.7,1562.6,6.92066]
[1744294057537,4.729,1563.7,1563.0,3.20083]
[1744294057736,7.4034,1563.5,1563.4,1.27994]
[1744294057937,7.4034,1563.7,1563.6,1.27976]
[1744294058942,7.4034,1563.7,1563.5,1.28948092]
[1744294059136,1.27984,1563.6,1563.5,0.00960092]
[1744294059643,8.13784,1563.6,1563.5,0.00960092]
[1744294059842,8.13784,1563.6,1563.5,1.28952092]
[1744294060039,13.13784,1563.6,1563.5,0.00960092]
[1744294061342,13.13784,1563.6,1563.5,1.28952092]
[1744294061343,6.858,1563.6,1563.5,1.28952092]
[1744294061943,8.13784,1563.6,1563.5,0.00960092]
[1744294062742,6.858,1563.6,1563.5,4.49732092]
[1744294062937,0.00960092,1563.8,1563.7,1.27975]
[1744294063137,7.38800092,1563.8,1563.5,0.00960092]
[1744294063455,7.38800092,1563.8,1563.7,1.27975]
[1744294063742,0.00960092,1563.8,1563.7,1.27975]
[1744294064043,9.2e-07,1563.8,1563.7,9.48755]
[1744294064439,9.2e-07,1563.8,1563.7,16.70175]
[1744294065342,9.2e-07,1563.8,1563.7,25.74202149]
[1744294065541,6.9603,1564.4,1563.9,3.19879]
[1744294065746,6.94727983,1564.4,1564.3,1.27926]
[1744294066343,6.94727983,1564.4,1564.2,1.27931]
[1744294066545,1.27926,1564.3,1564.2,1.27931]
[1744294066744,8.22652983,1564.4,1564.2,1.27931]
[1744294066937,6.94727983,1564.4,1564.3,1.27926]
[1744294067438,11.94727983,1564.4,1563.9,6.40677]
[1744294067644,8.22649983,1564.4,1564.3,1.27926]
[1744294067845,6.94727983,1564.4,1564.3,1.27926]
[1744294069235,6.94727983,1564.4,1564.2,7.0576]
[1744294069236,1.27928,1564.3,1564.2,1.27928]
[1744294069446,1.27944,1564.1,1564.0,1.27945]
[1744294069650,6.9921,1564.2,1563.8,3.19918]
[1744294069844,8.2715,1564.2,1564.1,1.27943]
[1744294070041,6.9921,1564.2,1563.8,3.19918]
[1744294070251,1.27945,1564.1,1564.0,1.27946]
[1744294070451,6.9921,1564.2,1564.1,1.27943]
[1744294070747,8.27145,1564.2,1564.1,1.27943]
[1744294070959,6.9921,1564.2,1563.7,3.19938]
[1744294071141,1.27953,1564.0,1563.9,1.27953]
[1744294071341,6.9921,1564.2,1563.6,13.46497]
[1744294071542,8.27149,1564.2,1564.1,1.27943]
[1744294071742,8.27149,1564.2,1563.7,3.19939]
[1744294071743,6.97907983,1564.2,1563.6,10.2654]
[1744294071941,6.97907983,1564.2,1563.8,3.2078]
[1744294072143,0.00960092,1564.5,1564.4,1.27918]
[1744294072349,13.3833,1564.9,1564.4,3.2078]
[1744294072542,3.2078,1564.9,1564.8,1.27885]
[1744294072939,31.53531253,1565.1,1564.7,3.1972]
[1744294073141,31.53531253,1565.1,1564.7,7.1468]
[1744294073346,4.72751253,1565.1,1565.0,1.27869]
[1744294073554,1.27875,1565.0,1564.7,7.15640092]
[1744294073745,7.94491345,1565.1,1564.7,0.00960092]
[1744294073944,7.94491345,1565.1,1564.9,1.27874]
[1744294074150,7.94491345,1565.1,1564.7,0.00960092]
[1744294074151,1.27885,1564.8,1564.7,0.00960092]
[1744294074352,16.14144345,1565.1,1564.6,1.27895]
[1744294074353,0.00341925,1564.7,1564.6,1.27895]
[1744294074754,1.27911,1564.5,1564.4,1.27912]
[1744294074948,1.27911,1564.5,1564.3,1.2792]
[1744294075258,6.40886925,1564.6,1564.0,8.072]
[1744294075451,1.27926,1564.3,1564.2,0.00960092]
[1744294075657,1.27914,1564.5,1564.4,1.27915]
[1744294075858,3.2078,1564.6,1564.2,0.00960092]
[1744294076157,3.2078,1564.6,1564.4,1.27911]
[1744294076358,1.27919,1564.4,1564.3,1.27926]
[1744294076560,1.27926,1564.3,1564.2,0.00960092]
[1744294076959,3.2078,1564.4,1564.2,1.28888092]
[1744294077261,1.27926,1564.3,1564.2,0.00960092]
[1744294077950,1.27926,1564.3,1564.2,1.28895092]
[1744294078157,1.27926,1564.3,1564.2,0.00960092]
[1744294078550,1.27971,1563.8,1563.7,1.27973]
[1744294078747,1.27984,1563.6,1563.5,9.8132617]
[1744294078951,1.27979,1563.7,1563.5,9.8132617]
[1744294079254,1.27984,1563.6,1563.5,9.8132617]
[1744294079661,4.48764,1563.6,1563.5,9.8132617]
[1744294079857,9.48764,1563.6,1563.5,9.8132617]
[1744294080159,8.2078,1563.6,1563.4,1.28958092]
[1744294080361,1.27992,1563.5,1563.4,0.00960092]
[1744294080958,6.27992,1563.5,1563.4,0.00960092]
[1744294081164,1.28025,1563.1,1563.0,11.0935617]
[1744294081361,1.28025,1563.1,1563.0,11.0935217]
[1744294081362,4.48805,1563.1,1563.0,11.0935217]
[1744294081555,4.48805,1563.1,1563.0,11.0935917]
[1744294081757,4.48805,1563.1,1563.0,9.8132617]
[1744294081955,4.48805,1563.1,1563.0,11.0935917]
[1744294082155,8.35555,1563.4,1563.0,11.0935917]
[1744294082156,3.2078,1563.3,1563.1,1.28021]
[1744294082359,4.4879,1563.3,1563.0,9.8132617]
[1744294082655,4.48788,1563.3,1563.2,1.28016]
[1744294082858,8.2078,1563.3,1563.0,11.0935717]
[1744294083163,3.2078,1563.5,1563.0,13.0139917]
[1744294083355,3.2078,1563.5,1563.4,1.28]
[1744294083866,0.00960092,1563.7,1563.6,1.27984]
[1744294084363,0.00960092,1563.7,1563.4,6.8324]
[1744294084564,0.00960092,1563.7,1563.6,1.27984]
[1744294084956,5.00960092,1563.7,1563.1,8.15827379]
[1744294085261,0.00960092,1563.7,1563.6,1.27984]
[1744294085562,9.2e-07,1563.7,1563.6,9.35384]
[1744294085769,9.45502506,1564.4,1564.1,1.27943]
[1744294086060,3.2078,1565.4,1564.3,3.2078]
[1744294086364,3.2078,1565.4,1565.2,1.27853]
[1744294086365,6.91387983,1565.3,1565.2,1.27853]
[1744294086759,7.81039622,1565.3,1565.2,1.27853]
[1744294086960,0.00960092,1565.4,1565.3,1.27845]
[1744294087162,0.90611731,1565.4,1565.1,0.00960092]
[1744294087468,1.27868,1565.1,1564.6,6.7733]
[1744294087660,8.20561092,1565.4,1564.7,1.27891]
[1744294087661,3.2078,1564.9,1564.7,1.27891]
[1744294087963,3.2078,1564.9,1564.2,8.1076]
[1744294088162,3.2078,1564.5,1564.3,1.27923]
[1744294088368,3.2078,1564.9,1564.1,6.7733]
[1744294088669,8.074,1565.2,1564.1,6.7733]
[1744294088670,0.00960092,1564.6,1564.1,15.01935901]
[1744294088868,0.00960092,1564.6,1564.5,1.2791]
[1744294089069,0.00960092,1564.6,1564.3,1.27921]
[1744294089363,0.00960092,1564.6,1563.9,9.8132617]
[1744294089364,3.2078,1564.4,1563.9,9.8132617]
[1744294089570,0.00960092,1564.6,1564.0,7.1655]
[1744294089571,3.21740092,1564.6,1564.0,7.1655]
[1744294089771,0.00960092,1564.6,1564.5,1.2791]
[1744294090268,8.21740092,1564.6,1563.9,3.2078]
[1744294090470,1.27923,1564.4,1564.0,7.1655]
[1744294090659,6.6532,1564.3,1564.2,1.27935]
[1744294090860,0.00960092,1564.6,1564.5,1.2791]
[1744294091059,9.2e-07,1564.6,1564.5,9.3511]
[1744294091271,9.2e-07,1564.6,1564.5,14.3511]
[1744294091472,9.2e-07,1564.6,1564.5,8.4446]
[1744294091659,9.2e-07,1564.6,1564.5,7.1655]
[1744294091868,6.65320092,1564.6,1563.7,9.2038]
[1744294092065,3.2078,1564.3,1564.0,7.1655]
[1744294092365,7.2668,1564.2,1564.1,1.27943]
[1744294092770,8.54618,1564.2,1564.0,0.00960092]
[1744294092969,7.2668,1564.2,1564.0,0.00960092]
[1744294093163,4.48723,1564.1,1564.0,0.00960092]
[1744294093374,3.2078,1564.1,1564.0,1.28911092]
[1744294093574,4.48723,1564.1,1564.0,0.00960092]
[1744294094071,9.79170092,1564.6,1564.1,1.27943]
[1744294094274,8.54592,1564.5,1564.2,7.01]
[1744294094475,7.2668,1564.5,1564.2,7.01]
[1744294094675,9.2e-07,1564.6,1564.5,1.2791]
[1744294094968,1.27943,1564.1,1564.0,0.00960092]
[1744294095173,4.48723,1564.1,1564.0,0.00960092]
[1744294095576,3.2078,1564.1,1564.0,1.28911092]
[1744294095770,10.3864,1564.3,1564.1,1.27942]
[1744294095971,10.3864,1564.3,1564.2,1.27935]
[1744294096164,7.1786,1564.3,1564.2,1.27935]
[1744294096875,10.3864,1564.3,1564.0,6.79250092]
[1744294097070,7.1786,1564.3,1564.1,1.27936]
[1744294097376,7.1786,1564.3,1564.0,6.79250092]
[1744294097577,3.2078,1564.2,1564.0,0.00960092]
[1744294097777,8.45803,1564.1,1564.0,0.00960092]
[1744294098275,13.45803,1564.1,1564.0,0.00960092]
[1744294098472,7.1786,1564.1,1563.5,6.7829]
[1744294098676,3.2078,1563.6,1563.5,6.7829]
[1744294099069,3.2078,1563.6,1563.2,100.7328]
[1744294099266,1.28019,1563.2,1563.0,1.28026]
[1744294099478,8.24536,1563.5,1563.0,3.20083]
[1744294099677,0.00960092,1563.3,1563.1,6.9796]
[1744294099871,3.2078,1563.2,1563.1,8.25979]
[1744294100071,10.1732,1563.2,1563.1,8.25979]
[1744294100375,3.20062,1563.1,1562.7,1.28056]
[1744294100575,3.2078,1562.9,1562.6,6.9796]
[1744294100774,4.48837,1562.7,1562.6,1.28066]
[1744294100983,3.2078,1562.7,1562.4,6.9796]
[1744294101170,3.2078,1562.5,1561.9,3.2078]
[1744294101366,6.9654,1562.4,1562.3,1.2809]
[1744294101565,0.00960092,1562.4,1562.3,1.2809]
[1744294101979,6.95460092,1562.4,1562.3,1.2809]
[1744294102176,1.28098,1562.3,1561.9,3.2078]
[1744294102376,1.28109,1562.1,1561.9,1.28119]
[1744294102576,6.945,1562.0,1561.8,1.28126]
[1744294102878,6.945,1562.0,1561.9,1.28123]
[1744294103075,10.16320476,1562.0,1561.9,1.28123]
[1744294103276,0.01040476,1562.0,1561.9,1.28123]
[1744294103476,0.01040476,1562.0,1561.9,6.28123]
[1744294103668,6.945,1562.3,1561.9,9.48903]
[1744294103868,0.00960092,1562.4,1562.0,3.20282]
[1744294104078,1.28093,1562.3,1562.1,1.28102]
[1744294104274,1.2811,1562.1,1561.9,1.28119]
[1744294104576,0.00960092,1562.4,1561.9,3.20307]
[1744294104770,7.1166,1562.3,1562.2,1.27057712]
[1744294104974,7.1166,1562.3,1561.9,3.20307]
[1744294104975,10.3244,1562.3,1561.8,3.2078]
[1744294105282,7.1166,1562.3,1562.2,1.28098]
[1744294105477,10.3244,1562.3,1561.9,6.5086]
[1744294105782,11.60532,1562.3,1562.1,1.281]
[1744294106081,0.01040288,1562.2,1562.1,1.28102]
[1744294106483,7.13740576,1562.2,1562.1,1.28102]
[1744294106674,0.02080576,1562.2,1562.1,1.28102]
[1744294106872,0.00960092,1562.4,1562.3,1.2809]
[1744294107481,6.67060092,1562.4,1562.3,1.2809]
[1744294107671,6.67060092,1562.4,1562.2,6.5086]
[1744294107873,4.48872,1562.3,1561.9,8.18778]
[1744294108072,6.661,1562.2,1562.1,1.28107]
[1744294108687,6.67140628,1562.2,1562.1,1.28107]
[1744294109683,7.95244628,1562.2,1562.0,1.28115]
[1744294109882,3.2078,1562.1,1562.0,1.28115]
[1744294110381,4.48887,1562.1,1561.9,1.28117]
[1744294110580,7.93025628,1562.0,1561.8,1.28125]
[1744294110789,3.22861551,1561.9,1561.5,0.01543943]
[1744294111084,3.2078,1561.7,1561.6,1.28143]
[1744294111775,3.22861551,1561.7,1561.6,1.28143]
[1744294111975,0.02433771,1561.7,1561.6,1.28143]
[1744294112179,0.02433771,1561.7,1561.6,8.15153]
[1744294113081,0.02433771,1561.7,1561.6,13.15153]
[1744294113478,8.3481,1562.3,1562.2,1.28098]
[1744294113678,3.2078,1562.3,1562.2,1.28098]
[1744294113880,3.2078,1562.3,1561.9,11.26804]
[1744294113881,1.28114,1562.1,1561.9,1.28117]
[1744294114189,3.2078,1562.1,1562.0,1.28115]
[1744294114579,3.2078,1562.1,1561.7,3.20347]
[1744294114778,1.28128,1561.9,1561.8,1.28129]
[1744294114982,9.6658,1562.0,1561.6,3.20365]
[1744294115285,9.56593,1562.2,1562.1,1.28107]
[1744294115487,8.2849,1562.2,1562.1,1.28107]
[1744294115677,9.56588,1562.2,1562.1,1.28107]
[1744294115882,9.56593,1562.2,1562.1,1.28107]
[1744294116093,28.09826092,1562.4,1562.3,1.2809]
[1744294116299,0.00960092,1562.4,1562.3,1.2809]
[1744294116494,3.21740092,1562.4,1562.3,1.2809]
[1744294116904,0.00960092,1562.4,1562.3,1.2809]
[1744294119803,9.2e-07,1562.4,1562.3,6.2809]
[1744294120302,11.74394716,1563.5,1562.3,6.2809]
[1744294120303,3.2078,1563.7,1563.6,1.27984]
[1744294120606,3.2078,1563.7,1563.4,1.28]
[1744294120797,26.8078,1563.7,1563.6,1.26942461]
[1744294120994,13.0193,1564.1,1563.3,11.2728]
[1744294121202,3.2078,1564.5,1563.7,3.2078]
[1744294121395,3.2078,1564.7,1563.9,3.2078]
[1744294121599,3.2078,1564.7,1564.3,3.2078]